bitfinex-derivatives/quotes_BTCF0:USTF0_20251202
["timestamp","ask_amount","ask_price","bid_price","bid_amount"]
[1764673196878,0.23629,87349.0,87348.0,0.22350171]
[1764673197884,0.59709,87349.0,87348.0,0.22350171]
[1764673198084,0.59709,87349.0,87348.0,0.00017171]
[1764673199190,0.78709,87349.0,87348.0,0.00017171]
[1764673199391,1.02709,87349.0,87348.0,0.00017171]
[1764673199781,0.2357397,87344.0,87343.0,0.05]
[1764673200090,0.6357397,87344.0,87343.0,0.05]
[1764673200293,0.2357402,87340.0,87339.0,0.75801]
[1764673200492,0.5965402,87340.0,87339.0,0.64846]
[1764673200685,0.5965402,87340.0,87339.0,0.75801]
[1764673202497,0.6075402,87340.0,87339.0,0.75801]
[1764673202899,0.6075402,87340.0,87339.0,0.64846]
[1764673203204,0.7475402,87340.0,87339.0,0.53468]
[1764673203391,0.2240821,87326.0,87325.0,0.59935347]
[1764673203592,0.2240821,87326.0,87325.0,1.16458084]
[1764673204094,0.1180321,87326.0,87325.0,1.13399737]
[1764673204601,0.2240821,87326.0,87325.0,1.13399737]
[1764673204902,0.2320821,87326.0,87325.0,1.13399737]
[1764673205394,0.2320821,87326.0,87325.0,0.60031737]
[1764673205595,0.2320821,87326.0,87325.0,1.13499737]
[1764673206801,0.2320821,87326.0,87325.0,0.60031737]
[1764673206999,0.2320821,87326.0,87325.0,1.13499737]
[1764673208496,0.2320821,87326.0,87325.0,0.60031737]
[1764673208798,0.2320821,87326.0,87325.0,0.77419737]
[1764673209498,0.2320821,87326.0,87325.0,0.74365]
[1764673209899,0.2320821,87326.0,87325.0,0.20897]
[1764673210105,0.2320821,87326.0,87325.0,0.001]
[1764673211504,0.2340821,87326.0,87325.0,0.001]
[1764673211701,0.6948821,87326.0,87325.0,0.001]
[1764673212200,0.1180331,87318.0,87317.0,0.74265]
[1764673212504,0.1280322,87326.0,87325.0,0.20797]
[1764673212705,0.2340822,87326.0,87325.0,0.20797]
[1764673213993,0.2350822,87326.0,87325.0,0.20797]
[1764673214193,0.22363,87326.0,87325.0,0.20797]
[1764673215507,0.011,87326.0,87325.0,0.20797]
[1764673215706,0.00157563,87326.0,87325.0,0.20797]
[1764673215891,0.10658,87352.0,87351.0,0.2194188]
[1764673216096,0.3608,87361.0,87351.0,0.2194188]
[1764673216097,0.21263,87361.0,87360.0,0.20797]
[1764673216294,0.2240767,87368.0,87367.0,0.20797]
[1764673216498,0.5848767,87368.0,87367.0,0.20797]
[1764673216707,0.21263,87355.0,87354.0,0.27572]
[1764673216912,0.21263,87355.0,87354.0,0.20797]
[1764673217608,0.57343,87358.0,87357.0,0.20797]
[1764673217915,0.57343,87358.0,87348.0,0.0661292]
[1764673217916,0.0114491,87349.0,87348.0,0.20797]
[1764673218102,0.21263,87349.0,87348.0,0.74261]
[1764673218708,0.21263,87349.0,87348.0,0.20797]
[1764673218906,0.21263,87349.0,87348.0,0.74261]
[1764673219306,0.2360783,87355.0,87354.0,0.20797]
[1764673219612,0.21263,87347.0,87346.0,0.00017171]
[1764673219801,0.57343,87347.0,87346.0,0.00017171]
[1764673220812,0.58543,87347.0,87346.0,0.00117171]
[1764673222620,0.58643,87347.0,87346.0,0.10029171]
[1764673222916,0.58643,87347.0,87346.0,0.20914171]
[1764673225111,0.3738,87347.0,87346.0,0.27689171]
[1764673225313,0.58643,87347.0,87346.0,0.20914171]
[1764673227110,0.013,87347.0,87346.0,0.26382171]
[1764673228717,0.11958,87347.0,87346.0,0.26382171]
[1764673228921,0.11958,87347.0,87346.0,0.27527121]
[1764673229218,0.013,87347.0,87346.0,0.27527121]
[1764673232121,0.0083892,87347.0,87346.0,0.27527121]
[1764673232510,0.0114475,87362.0,87361.0,0.18598]
[1764673233021,0.1060475,87362.0,87361.0,0.18598]
[1764673233519,0.2053075,87362.0,87361.0,0.18598]
[1764673233919,0.2183075,87362.0,87361.0,0.18698]
[1764673234110,0.1076,87362.0,87361.0,0.18698]
[1764673234308,0.014,87362.0,87361.0,0.18698]
[1764673235118,0.013,87362.0,87361.0,0.18698]
[1764673235327,0.013,87362.0,87361.0,0.54778]
[1764673236014,0.00017171,87363.0,87362.0,0.2028074]
[1764673237216,0.00517171,87363.0,87362.0,0.7372474]
[1764673238018,0.19903171,87363.0,87362.0,0.19136]
[1764673238220,0.55983171,87363.0,87362.0,0.09212]
[1764673238426,0.55983171,87363.0,87356.0,0.19136]
[1764673238427,0.19386,87357.0,87356.0,0.19136]
[1764673238718,0.19386,87347.0,87346.0,0.19153171]
[1764673238922,0.2053093,87347.0,87346.0,0.72593171]
[1764673239909,0.2093093,87347.0,87346.0,0.72593171]
[1764673240423,0.19386,87347.0,87346.0,0.72593171]
[1764673240621,0.19886,87347.0,87346.0,0.72593171]
[1764673241217,0.005,87347.0,87346.0,0.78385171]
[1764673242238,0.2053084,87355.0,87354.0,0.19136]
[1764673242425,0.19386,87355.0,87354.0,0.19136]
[1764673243617,0.19986,87355.0,87354.0,0.19136]
[1764673244527,0.20086,87355.0,87354.0,0.19136]
[1764673244717,0.1016,87355.0,87354.0,0.19136]
[1764673244917,0.007,87355.0,87354.0,0.19136]
[1764673245123,0.006,87355.0,87354.0,0.19136]
[1764673245323,0.006,87355.0,87354.0,0.22254999]
[1764673245913,0.005,87355.0,87354.0,0.22254999]
[1764673246625,0.003,87355.0,87354.0,0.22254999]
[1764673246931,0.003,87355.0,87354.0,0.19136]
[1764673249424,0.003,87355.0,87354.0,0.22254967]
[1764673249619,0.003,87355.0,87354.0,0.19136]
[1764673250128,0.003,87355.0,87354.0,0.22254974]
[1764673251030,0.00136925,87355.0,87354.0,0.22254974]
[1764673251818,0.00017171,87363.0,87362.0,0.0114474]
[1764673252129,0.00017171,87363.0,87362.0,1.12907714]
[1764673253137,0.00017171,87363.0,87362.0,1.11762974]
[1764673253838,0.19403171,87363.0,87362.0,1.11762974]
[1764673254036,0.09477171,87363.0,87362.0,1.11762974]
[1764673254829,0.19603171,87363.0,87362.0,0.55216]
[1764673255030,0.19603171,87363.0,87362.0,1.08644]
[1764673255338,0.19403171,87363.0,87362.0,1.08644]
[1764673255525,0.19603171,87363.0,87362.0,1.08644]
[1764673256037,0.19703171,87363.0,87362.0,1.08644]
[1764673256339,0.19703171,87363.0,87362.0,0.55216]
[1764673256636,0.19703171,87363.0,87362.0,1.0864]
[1764673257030,0.19703171,87363.0,87362.0,0.58335082]
[1764673257243,0.19703171,87363.0,87362.0,1.11759082]
[1764673257632,0.20847891,87363.0,87362.0,0.92623082]
[1764673258032,0.20547891,87363.0,87362.0,1.11759082]
[1764673258232,0.20847891,87363.0,87362.0,1.11759082]
[1764673258433,0.20847891,87363.0,87362.0,1.11759429]
[1764673258632,0.20547891,87363.0,87362.0,0.75679429]
[1764673258836,0.20547891,87363.0,87362.0,0.53424]
[1764673258837,0.20947891,87363.0,87362.0,0.53424]
[1764673259429,0.20947891,87363.0,87362.0,0.7256]
[1764673259637,0.19803171,87363.0,87362.0,0.19136]
[1764673259835,0.09877171,87363.0,87362.0,0.7567602]
[1764673260236,0.19903171,87363.0,87362.0,0.7567602]
[1764673260442,0.09977171,87363.0,87362.0,0.7567602]
[1764673260741,0.19903171,87363.0,87362.0,0.7567602]
[1764673260938,0.19503171,87363.0,87362.0,0.7567602]
[1764673261142,0.19903171,87363.0,87362.0,0.7567602]
[1764673261538,0.19803171,87363.0,87362.0,0.2225602]
[1764673261739,0.19803171,87363.0,87362.0,0.7567602]
[1764673262146,0.19903171,87363.0,87362.0,0.7567602]
[1764673262442,0.00517171,87363.0,87362.0,0.7567602]
[1764673262647,0.00017171,87363.0,87362.0,1.1175602]
[1764673262947,0.00417171,87363.0,87362.0,1.1175602]
[1764673264042,0.00417171,87363.0,87362.0,1.5375602]
[1764673264347,0.3608,87374.0,87373.0,0.16918]
[1764673264649,0.53568,87374.0,87373.0,0.7147859]
[1764673264847,0.45049,87374.0,87373.0,0.7147859]
[1764673265045,0.59257,87374.0,87373.0,0.70334]
[1764673265246,0.53568,87374.0,87373.0,0.7147859]
[1764673265639,0.17488,87366.0,87365.0,0.00017171]
[1764673265948,0.17488,87366.0,87365.0,0.7346983]
[1764673266840,0.17488,87366.0,87365.0,0.0313583]
[1764673267045,0.17488,87366.0,87365.0,0.00017171]
[1764673267250,0.17788,87366.0,87365.0,0.00017171]
[1764673268356,0.17988,87366.0,87365.0,0.00017171]
[1764673268958,0.18088,87366.0,87365.0,0.00017171]
[1764673269150,0.54168,87366.0,87365.0,0.00017171]
[1764673269552,0.54068,87366.0,87365.0,0.00017171]
[1764673269752,0.54168,87366.0,87365.0,0.00017171]
[1764673270449,0.18088,87366.0,87365.0,0.16935171]
[1764673270650,0.17988,87366.0,87365.0,0.16935171]
[1764673270851,0.17988,87366.0,87365.0,0.2006178]
[1764673271161,0.005,87366.0,87365.0,0.2006178]
[1764673271658,0.001,87366.0,87365.0,0.2006178]
[1764673271958,0.001,87366.0,87365.0,0.23119001]
[1764673271959,0.004,87366.0,87365.0,0.23119001]
[1764673272263,0.003,87366.0,87365.0,0.2006178]
[1764673272571,0.004,87366.0,87365.0,0.2006178]
[1764673272767,0.004,87366.0,87365.0,0.24132013]
[1764673273163,0.003,87366.0,87365.0,0.24132013]
[1764673273365,0.17505171,87382.0,87381.0,0.16918]
[1764673273961,0.17505171,87382.0,87381.0,0.1806249]
[1764673274160,0.08986171,87382.0,87381.0,0.1806249]
[1764673274363,0.17505171,87382.0,87381.0,0.1806249]
[1764673274570,0.18005171,87382.0,87381.0,0.1806249]
[1764673274975,0.18105171,87382.0,87381.0,0.1806249]
[1764673275277,0.18105171,87382.0,87381.0,0.70326]
[1764673277175,0.17488,87372.0,87371.0,0.16918]
[1764673277375,0.17488,87372.0,87371.0,0.73450204]
[1764673277577,0.17488,87372.0,87371.0,0.20042204]
[1764673277873,0.1863268,87366.0,87365.0,0.00017171]
[1764673278079,0.5471268,87366.0,87365.0,0.00017171]
[1764673278275,0.53568,87366.0,87365.0,0.16935171]
[1764673278475,0.17988,87372.0,87371.0,0.16918]
[1764673279070,0.17888,87372.0,87371.0,0.16918]
[1764673279578,0.17488,87372.0,87371.0,0.16918]
[1764673280485,0.17888,87372.0,87371.0,0.16918]
[1764673280871,0.17588,87372.0,87371.0,0.16918]
[1764673281072,0.09469,87372.0,87371.0,0.20042276]
[1764673281377,0.005,87372.0,87371.0,0.20042276]
[1764673281580,0.004,87372.0,87371.0,0.20042276]
[1764673281770,0.005,87372.0,87371.0,0.20042276]
[1764673282380,0.09369,87372.0,87371.0,0.20042276]
[1764673282684,0.09469,87372.0,87371.0,0.20042276]
[1764673283784,0.005,87372.0,87371.0,0.20042276]
[1764673287085,0.005,87372.0,87371.0,0.16918]
[1764673290275,0.005,87372.0,87371.0,0.20040489]
[1764673291583,0.17988,87372.0,87371.0,0.20040489]
[1764673291981,0.00017171,87382.0,87381.0,0.1689249]
[1764673292172,0.00017171,87382.0,87381.0,1.0636849]
[1764673292377,0.00017171,87382.0,87381.0,1.07512777]
[1764673292691,0.00017171,87382.0,87381.0,1.47633767]
[1764673293384,0.00517171,87382.0,87381.0,1.47633767]
[1764673293586,1.71e-06,87382.0,87381.0,1.47633767]
[1764673293783,1.71e-06,87382.0,87381.0,2.0069151]
[1764673294090,0.51444,87402.0,87401.0,0.1702723]
[1764673294389,0.15364,87408.0,87407.0,0.1702715]
[1764673295182,0.15364,87408.0,87407.0,0.15883]
[1764673296482,0.15764,87408.0,87407.0,0.08077]
[1764673296986,0.0588322,87402.0,87399.0,0.00017161]
[1764673297291,0.15364,87400.0,87399.0,0.00017161]
[1764673298288,0.15364,87400.0,87399.0,0.15900161]
[1764673298502,0.15664,87408.0,87407.0,0.1702715]
[1764673298677,0.15664,87408.0,87407.0,1.05347]
[1764673298881,0.15364,87400.0,87399.0,0.17044411]
[1764673299082,0.15364,87400.0,87399.0,0.70428411]
[1764673300185,0.20103,87409.0,87408.0,0.15883]
[1764673301295,0.001,87409.0,87408.0,0.15883]
[1764673301495,0.15464,87409.0,87408.0,0.15883]
[1764673302084,0.001,87409.0,87408.0,0.15883]
[1764673304108,0.001,87409.0,87408.0,0.50883]
[1764673305195,0.001,87409.0,87408.0,0.15883]
[1764673305196,0.07627,87409.0,87408.0,0.15883]
[1764673305404,0.15464,87409.0,87408.0,0.69259]
[1764673306202,0.07627,87409.0,87408.0,0.69259]
[1764673306500,0.001,87409.0,87408.0,0.69259]
[1764673306699,0.07527,87437.0,87436.0,0.15883]
[1764673306891,0.21529926,87450.0,87449.0,0.15883]
[1764673307091,0.15364,87441.0,87440.0,0.15883]
[1764673307502,0.07527,87441.0,87440.0,0.15883]
[1764673308096,0.15364,87441.0,87440.0,0.15883]
[1764673308296,0.15364,87436.0,87435.0,0.08077]
[1764673308501,0.15364,87436.0,87435.0,0.61445]
[1764673308898,0.15364,87433.0,87432.0,0.00017161]
[1764673309093,0.51444,87433.0,87432.0,0.00017161]
[1764673311396,0.51444,87433.0,87432.0,0.08094161]
[1764673311708,0.51444,87433.0,87432.0,0.00017161]
[1764673312209,0.51544,87433.0,87432.0,0.00017161]
[1764673312802,0.51444,87433.0,87432.0,0.00017161]
[1764673315507,0.51544,87433.0,87432.0,0.00017161]
[1764673316717,0.51544,87433.0,87415.0,0.3608]
[1764673316718,0.15364,87416.0,87415.0,0.51963]
[1764673316910,0.15364,87416.0,87415.0,0.86687]
[1764673317205,0.1650795,87423.0,87422.0,0.15883]
[1764673318410,0.20103,87416.0,87415.0,0.86687]
[1764673318613,0.1650804,87415.0,87414.0,0.00017161]
[1764673319000,0.1650804,87415.0,87405.0,0.3608]
[1764673319001,0.1650816,87406.0,87405.0,0.89432]
[1764673319203,0.1650816,87406.0,87405.0,0.3608]
[1764673319408,0.1650828,87397.0,87396.0,0.3608]
[1764673319604,0.15364,87388.0,87387.0,0.6901141]
[1764673320308,0.07527,87388.0,87387.0,0.6901141]
[1764673320907,0.00017161,87396.0,87395.0,0.170273]
[1764673321112,0.07544161,87396.0,87395.0,0.170273]
[1764673321309,0.00017161,87396.0,87395.0,0.170273]
[1764673322202,0.00017161,87396.0,87395.0,0.20146143]
[1764673322801,0.07018161,87396.0,87395.0,0.20146143]
[1764673323006,0.15116451,87396.0,87395.0,0.72357843]
[1764673323214,0.15116451,87396.0,87395.0,0.61433]
[1764673323402,0.13972161,87396.0,87395.0,0.68241]
[1764673323603,0.13972161,87396.0,87395.0,0.14885]
[1764673323805,0.13972161,87396.0,87395.0,0.68241]
[1764673324003,0.13955,87388.0,87387.0,0.43247]
[1764673324199,0.13955,87388.0,87387.0,0.89436]
[1764673324403,0.13955,87388.0,87387.0,1.03411]
[1764673324706,0.1509931,87395.0,87394.0,0.13975]
[1764673325401,0.1509931,87395.0,87394.0,0.07167]
[1764673325618,0.13955,87388.0,87387.0,0.3608]
[1764673325824,0.13955,87388.0,87387.0,0.88796]
[1764673326007,0.13955,87388.0,87387.0,0.3608]
[1764673329320,0.14055,87388.0,87387.0,0.3608]
[1764673330017,0.1509958,87374.0,87367.0,0.3608]
[1764673330920,0.13955,87351.0,87350.0,0.11369633]
[1764673331105,0.13955,87351.0,87350.0,0.21368993]
[1764673331306,0.1509988,87351.0,87350.0,0.1716636]
[1764673331507,0.1509988,87351.0,87350.0,0.7052636]
[1764673331913,0.15109273,87351.0,87350.0,0.7052636]
[1764673332121,0.15109273,87351.0,87350.0,0.1035836]
[1764673332809,0.13964393,87351.0,87350.0,0.0114489]
[1764673333004,9.393e-05,87351.0,87350.0,0.13975]
[1764673333210,0.13964393,87351.0,87350.0,0.13975]
[1764673333427,0.13964393,87351.0,87350.0,0.14275]
[1764673333604,0.13964393,87351.0,87350.0,0.67639]
[1764673334004,0.13964393,87351.0,87350.0,0.67739]
[1764673334708,0.13964393,87351.0,87350.0,0.004]
[1764673335524,0.50044393,87351.0,87350.0,0.004]
[1764673338914,0.1509999,87343.0,87342.0,0.00017172]
[1764673339115,0.51193012,87343.0,87342.0,0.00017172]
[1764673340030,0.51193012,87343.0,87342.0,0.00417172]
[1764673340625,0.51193012,87343.0,87342.0,0.00517172]
[1764673341019,0.13955,87324.0,87323.0,0.00537241]
[1764673341325,0.13968022,87324.0,87323.0,0.00537241]
[1764673341726,0.13968022,87324.0,87323.0,0.15657491]
[1764673343124,0.14168022,87324.0,87323.0,0.15657491]
[1764673345017,0.14168022,87324.0,87323.0,0.51737491]
[1764673345939,0.14168022,87324.0,87323.0,0.43784241]
[1764673347219,0.14168022,87324.0,87323.0,0.36617241]
[1764673347518,0.14168022,87324.0,87323.0,0.50592241]
[1764673348326,0.14168022,87324.0,87323.0,0.43784241]
[1764673348524,0.13630892,87324.0,87323.0,0.43247]
[1764673349432,0.13630892,87324.0,87323.0,0.47576475]
[1764673349933,0.13630892,87324.0,87323.0,0.17159225]
[1764673349934,0.49710892,87324.0,87323.0,0.17159225]
[1764673350131,0.1510033,87317.0,87316.0,0.13975]
[1764673350319,0.1510033,87317.0,87316.0,0.03184444]
[1764673350834,0.1510033,87317.0,87316.0,0.17159444]
[1764673351232,0.1530033,87317.0,87316.0,0.03184444]
[1764673354233,0.1530033,87317.0,87316.0,0.10351444]
[1764673355224,0.1530033,87317.0,87316.0,0.13409187]
[1764673355434,0.1530033,87317.0,87316.0,0.10351444]
[1764673355824,0.1530033,87317.0,87316.0,0.03184444]
[1764673357236,0.1530033,87317.0,87316.0,0.06228794]
[1764673357633,0.1807041,87311.0,87310.0,0.04076991]
[1764673357936,0.18083427,87311.0,87310.0,0.03193213]
[1764673358140,0.18083427,87311.0,87310.0,0.07270204]
[1764673358836,0.18183427,87311.0,87310.0,0.07270204]
[1764673359137,0.18183427,87311.0,87310.0,0.16331213]
[1764673359637,0.18183427,87311.0,87310.0,0.09955213]
[1764673360028,0.18183427,87311.0,87310.0,0.03193213]
[1764673361233,0.18183427,87311.0,87310.0,0.06246981]
[1764673361438,0.18183427,87311.0,87310.0,0.03193213]
[1764673363240,0.18183427,87311.0,87310.0,0.02213202]
[1764673364334,0.31183427,87311.0,87310.0,0.02162536]
[1764673364636,0.1416552,87302.0,87301.0,8.399e-05]
[1764673364833,0.1302,87289.0,87288.0,0.04068079]
[1764673365039,0.1302,87280.0,87279.0,0.17206079]
[1764673365237,0.1302,87280.0,87279.0,0.13138]
[1764673365832,0.13029159,87280.0,87279.0,0.13138]
[1764673366332,0.13029159,87280.0,87278.0,0.0114584]
[1764673366534,0.1302,87279.0,87278.0,0.1428384]
[1764673367035,0.1302,87276.0,87275.0,0.18351949]
[1764673367241,0.1302,87276.0,87275.0,0.13138]
[1764673367434,0.16925,87276.0,87275.0,0.06762]
[1764673367640,0.16925,87276.0,87275.0,0.13138]
[1764673367838,0.1302,87276.0,87275.0,0.13138]
[1764673369145,9.159e-05,87280.0,87279.0,0.1428382]
[1764673369340,9.159e-05,87280.0,87279.0,0.5036382]
[1764673369529,0.00017182,87288.0,87287.0,0.1428372]
[1764673369734,0.00017182,87288.0,87287.0,0.5036372]
[1764673370341,0.03905,87328.0,87318.0,0.13138]
[1764673370542,0.1302,87328.0,87327.0,0.13138]
[1764673370837,0.13032262,87328.0,87327.0,0.13138]
[1764673371944,0.00012262,87328.0,87327.0,0.17256]
[1764673372141,0.00712262,87328.0,87327.0,0.53336]
[1764673372342,0.00712262,87328.0,87327.0,0.61229133]
[1764673372541,0.00017182,87336.0,87327.0,0.61229133]
[1764673372542,0.00017182,87336.0,87335.0,0.1428309]
[1764673372845,0.00017182,87336.0,87335.0,1.07835048]
[1764673373038,0.00017182,87336.0,87335.0,1.11657283]
[1764673373340,0.00017182,87336.0,87335.0,1.05561289]
[1764673373553,0.491,87355.0,87354.0,0.13138]
[1764673374750,0.16942171,87363.0,87362.0,0.13138]
[1764673375939,0.17042171,87363.0,87362.0,0.13138]
[1764673376142,0.17142171,87363.0,87362.0,0.13138]
[1764673377634,0.13237171,87363.0,87362.0,0.13138]
[1764673379248,0.17142171,87363.0,87362.0,0.06762]
[1764673380445,0.17142171,87363.0,87351.0,0.53404]
[1764673380446,0.1302,87348.0,87347.0,0.0114493]
[1764673380636,0.491,87356.0,87355.0,0.13138]
[1764673382148,0.492,87356.0,87355.0,0.13138]
[1764673382341,0.001,87356.0,87355.0,0.13138]
[1764673382736,0.002,87356.0,87355.0,0.13138]
[1764673384049,0.12695,87356.0,87355.0,0.13138]
[1764673384747,0.12495,87347.0,87346.0,0.13752111]
[1764673384956,0.12495,87347.0,87346.0,0.65991171]
[1764673385138,0.1363993,87347.0,87346.0,0.00017171]
[1764673385338,0.4971993,87347.0,87346.0,0.00017171]
[1764673385540,0.12495,87347.0,87346.0,0.13752121]
[1764673385739,0.12495,87353.0,87352.0,0.1259]
[1764673386748,0.12495,87353.0,87352.0,0.06536]
[1764673387052,0.12495,87347.0,87346.0,0.12607171]
[1764673387245,0.12495,87347.0,87346.0,0.65987171]
[1764673387955,0.12495,87347.0,87346.0,0.00017171]
[1764673388653,0.48575,87347.0,87346.0,0.00017171]
[1764673389153,0.0114512,87333.0,87331.0,0.47388]
[1764673389354,0.02944,87344.0,87335.0,0.1259]
[1764673389546,0.12495,87336.0,87335.0,0.1373509]
[1764673390156,0.12495,87336.0,87335.0,0.1259]
[1764673390358,0.16548,87336.0,87335.0,0.1259]
[1764673390759,0.12495,87336.0,87335.0,0.1373509]
[1764673391657,0.16548,87336.0,87335.0,0.1279]
[1764673392246,0.0647,87336.0,87335.0,0.1279]
[1764673392751,0.12495,87336.0,87335.0,0.1279]
[1764673393249,0.3608,87339.0,87335.0,0.1279]
[1764673393250,0.01145,87343.0,87342.0,0.1259]
[1764673393445,0.06487171,87344.0,87343.0,0.1259]
[1764673393743,0.00017171,87344.0,87343.0,0.1259]
[1764673394751,0.12512171,87344.0,87343.0,0.65966]
[1764673396150,0.12512171,87344.0,87343.0,0.1259]
[1764673396360,0.12512171,87344.0,87343.0,0.65966]
[1764673396749,0.00017171,87344.0,87343.0,0.65966]
[1764673397259,0.3608,87352.0,87351.0,0.1373488]
[1764673397453,0.136398,87358.0,87357.0,0.1259]
[1764673397958,0.04053,87352.0,87349.0,0.137349]
[1764673398260,0.12495,87350.0,87349.0,0.1259]
[1764673398558,0.12495,87350.0,87349.0,0.65966]
[1764673398754,0.04053,87352.0,87347.0,0.3608]
[1764673398755,0.12495,87348.0,87347.0,0.3608]
[1764673398953,0.1363999,87343.0,87342.0,0.06553171]
[1764673399257,0.1363999,87343.0,87342.0,0.65983171]
[1764673400053,0.1363999,87343.0,87342.0,0.06553171]
[1764673400450,0.1363999,87343.0,87342.0,0.00017171]
[1764673400851,0.1364018,87328.0,87327.0,0.1373518]
[1764673401054,0.1364018,87328.0,87327.0,0.4863518]
[1764673401446,0.3608,87337.0,87327.0,0.4863518]
[1764673401447,0.3608,87337.0,87336.0,0.03765]
[1764673401645,0.3608,87337.0,87336.0,0.16355]
[1764673402447,0.4255,87337.0,87336.0,0.16355]
[1764673402648,0.4255,87337.0,87336.0,0.1259]
[1764673402649,0.48575,87337.0,87336.0,0.1259]
[1764673404271,0.48575,87337.0,87336.0,0.1279]
[1764673405267,0.12495,87337.0,87336.0,0.1279]
[1764673405962,0.10523,87344.0,87343.0,0.1259]
[1764673406166,0.16548,87344.0,87343.0,0.1259]
[1764673406367,0.16548,87344.0,87343.0,0.06536]
[1764673406565,0.12495,87339.0,87338.0,0.1373505]
[1764673407066,0.12495,87333.0,87332.0,0.16651198]
[1764673407259,0.04053,87336.0,87331.0,0.04077221]
[1764673407464,0.04053,87336.0,87329.0,0.65962]
[1764673407465,0.12495,87330.0,87329.0,0.65962]
[1764673408362,0.12495,87330.0,87329.0,0.06536]
[1764673408754,0.12495,87330.0,87329.0,0.1259]
[1764673409972,0.12495,87330.0,87329.0,0.1289]
[1764673410166,0.0761507,87337.0,87336.0,0.1259]
[1764673410366,0.0647,87337.0,87336.0,0.1259]
[1764673410772,0.12495,87337.0,87336.0,0.1259]
[1764673411560,0.12495,87337.0,87336.0,0.1279]
[1764673414670,0.12495,87337.0,87336.0,0.002]
[1764673414974,0.12495,87337.0,87336.0,0.11535]
[1764673417573,0.12495,87337.0,87336.0,0.05935]
[1764673417774,0.12495,87337.0,87336.0,0.11535]
[1764673420881,0.12495,87337.0,87336.0,0.002]
[1764673420882,0.48575,87337.0,87336.0,0.002]
[1764673421178,0.48575,87337.0,87336.0,0.11381]
[1764673423177,0.48575,87337.0,87336.0,0.002]
[1764673423681,0.48575,87337.0,87336.0,0.11381]
[1764673428292,0.48575,87337.0,87336.0,0.002]
[1764673429091,0.48575,87337.0,87336.0,0.11381]
[1764673429290,0.4255,87337.0,87336.0,0.11381]
[1764673429489,0.08193809,87351.0,87336.0,0.11381]
[1764673429490,0.06152903,87343.0,87342.0,0.01145]
[1764673429684,0.01162141,87345.0,87344.0,0.1232597]
[1764673429685,0.00017171,87345.0,87344.0,0.1232597]
[1764673429891,0.05562171,87345.0,87344.0,0.1232597]
[1764673430097,0.00017171,87345.0,87344.0,0.1232597]
[1764673430397,0.11335171,87345.0,87344.0,0.0542]
[1764673430598,0.11335171,87345.0,87344.0,0.11181]
[1764673431297,0.11335171,87345.0,87342.0,0.001]
[1764673431298,0.11318,87343.0,87342.0,0.001]
[1764673431493,0.11318,87343.0,87342.0,0.11281]
[1764673431699,0.05545,87343.0,87342.0,0.11281]
[1764673431900,0.11318,87343.0,87342.0,0.11281]
[1764673432095,0.11318,87337.0,87336.0,0.03061446]
[1764673432297,0.0114506,87337.0,87336.0,0.0542]
[1764673432491,0.1246306,87337.0,87336.0,0.11181]
[1764673432892,0.11318,87337.0,87336.0,0.11181]
[1764673433495,0.11318,87337.0,87336.0,0.11381]
[1764673435703,0.05562171,87345.0,87344.0,0.11181]
[1764673435903,0.1246302,87340.0,87339.0,0.11181]
[1764673436100,0.1246306,87337.0,87336.0,0.002]
[1764673436501,0.2646306,87337.0,87336.0,0.002]
[1764673436705,0.1246306,87337.0,87336.0,0.002]
[1764673436903,0.0114517,87329.0,87327.0,0.40068]
[1764673437092,0.1246317,87329.0,87327.0,0.03061446]
[1764673439198,0.1256317,87329.0,87327.0,0.03061446]
[1764673439400,0.1266317,87329.0,87327.0,0.03061446]
[1764673439998,0.1256317,87329.0,87327.0,0.03061446]
[1764673440194,0.1266317,87329.0,87325.0,0.3608]
[1764673440404,0.1266317,87329.0,87321.0,0.03061446]
[1764673440610,0.1266317,87329.0,87319.0,0.03061446]
[1764673440806,0.1256317,87329.0,87319.0,0.03061446]
[1764673441015,0.1266317,87329.0,87319.0,0.03061446]
[1764673441305,0.1256317,87329.0,87328.0,0.11198171]
[1764673441510,0.1266317,87329.0,87328.0,0.11198171]
[1764673441907,0.1256317,87329.0,87328.0,0.11198171]
[1764673442108,0.1266317,87329.0,87328.0,0.11198171]
[1764673442303,0.0679017,87329.0,87328.0,0.11198171]
[1764673442499,0.001,87329.0,87328.0,0.11198171]
[1764673442708,0.002,87329.0,87328.0,0.11198171]
[1764673443708,0.1102701,87341.0,87340.0,0.10331]
[1764673444896,0.1102701,87341.0,87333.0,0.0114511]
[1764673444897,0.1102712,87333.0,87332.0,0.10331]
[1764673445101,0.1102712,87333.0,87332.0,0.63695]
[1764673447007,0.1102712,87333.0,87332.0,0.66754859]
[1764673449414,0.1102712,87333.0,87332.0,0.13390859]
[1764673449613,0.1102712,87333.0,87332.0,0.66750859]
[1764673449813,0.1102712,87333.0,87332.0,0.69817831]
[1764673450211,0.1102712,87333.0,87332.0,0.16457831]
[1764673451411,0.1102712,87333.0,87332.0,0.13397972]
[1764673452515,0.1112712,87333.0,87332.0,0.13397972]
[1764673453117,0.1102712,87333.0,87332.0,0.13397972]
[1764673453705,0.1102712,87333.0,87332.0,0.08470972]
[1764673454012,0.1102712,87333.0,87332.0,0.03066972]
[1764673454409,0.1102712,87333.0,87328.0,0.00017171]
[1764673454410,0.1102717,87329.0,87328.0,0.00017171]
[1764673454604,0.1102717,87329.0,87328.0,0.03085016]
[1764673455706,0.1112717,87329.0,87328.0,0.03085016]
[1764673456112,0.0612117,87329.0,87328.0,0.13416016]
[1764673456314,0.1102717,87329.0,87328.0,0.13416016]
[1764673456517,0.1112717,87329.0,87328.0,0.13416016]
[1764673457816,0.1102717,87329.0,87328.0,0.03085016]
[1764673458018,0.09882,87329.0,87328.0,0.13416016]
[1764673458216,0.04876,87329.0,87328.0,0.13416016]
[1764673458405,0.0602114,87331.0,87330.0,0.10331]
[1764673458612,0.1102714,87331.0,87330.0,0.13398845]
[1764673460811,0.1112714,87331.0,87330.0,0.13398845]
[1764673461119,0.1112714,87331.0,87330.0,0.03067845]
[1764673462120,0.5212714,87331.0,87330.0,0.03067845]
[1764673462325,0.09882,87329.0,87328.0,0.00017171]
[1764673462712,0.09882,87329.0,87315.0,0.3608]
[1764673462713,0.0114519,87328.0,87315.0,0.03059859]